fUST/lending_fUST_20240721
["ID","MTS","AMOUNT","RATE_DAILY","PERIOD"]
[332801049,1721533842351,-502.44781403,0.00013698,2]
[332801050,1721533842362,-500.0,0.00013698,2]
[332801051,1721533842372,-500.0,0.00013698,2]
[332801052,1721533842381,-1755.58,0.00013698,2]
[332801053,1721533842391,-500.0,0.00013698,2]
[332801054,1721533842401,-500.0,0.00013698,2]
[332801055,1721533842412,-500.0,0.00013698,2]
[332801056,1721533842424,-500.0,0.00013698,2]
[332801057,1721533842434,-500.0,0.00013698,2]
[332801058,1721533842444,-823.56,0.00013698,2]
[332801059,1721533842453,-500.0,0.00013698,2]
[332801060,1721533842462,-578.55,0.00013698,2]
[332801061,1721533842472,-524.72,0.00013698,2]
[332801062,1721533842481,-500.0,0.00013698,2]
[332801063,1721533842490,-505.23104049,0.00013698,2]
[332801064,1721533842501,-500.0,0.00013698,2]
[332801065,1721533842511,-502.40607117,0.00013698,2]
[332801066,1721533842522,-558.39,0.00013698,2]
[332801067,1721533842532,-613.67,0.00013698,2]
[332801068,1721533842542,-631.49,0.00013698,2]
[332801069,1721533842552,-500.0,0.00013698,2]
[332801070,1721533842562,-810.54,0.00013698,2]
[332801071,1721533842572,-504.61777039,0.00013698,2]
[332801072,1721533842582,-4174.87,0.00013698,2]
[332801073,1721533842593,-533.14,0.00013698,2]
[332801074,1721533842602,-500.0,0.00013698,2]
[332801075,1721533842614,-614.64,0.00013698,2]
[332801076,1721533842624,-500.0,0.00013698,2]
[332801077,1721533842633,-500.0,0.00013698,2]
[332801078,1721533842642,-1486.09,0.00013698,2]
[332801079,1721533842653,-500.0,0.00013698,2]
[332801080,1721533842663,-1811.52,0.00013698,2]
[332801081,1721533842673,-718.49,0.00013698,2]
[332801082,1721533842683,-500.0,0.00013698,2]
[332801083,1721533842693,-1223.88,0.00013698,2]
[332801084,1721533842703,-500.0,0.00013698,2]
[332801085,1721533842712,-500.0,0.00013698,2]
[332801086,1721533842723,-500.0,0.00013698,2]
[332801087,1721533842733,-500.0,0.00013698,2]
[332801088,1721533842744,-500.0,0.00013698,2]
[332801089,1721533842758,-1556.98,0.00013698,2]
[332801090,1721533842767,-500.0,0.00013698,2]
[332801091,1721533842779,-500.0,0.00013698,2]
[332801092,1721533842788,-500.0,0.00013698,2]
[332801093,1721533842798,-500.0,0.00013698,2]
[332801094,1721533842807,-500.0,0.00013698,2]
[332801095,1721533842816,-500.0,0.00013698,2]
[332801096,1721533842825,-592.72339652,0.00013698,2]
[332801097,1721533842837,-513.01851565,0.00013698,2]
[332801098,1721533842847,-500.0,0.00013698,2]
[332801099,1721533842856,-500.0,0.00013698,2]
[332801100,1721533842866,-500.0,0.00013698,2]
[332801101,1721533842875,-500.0,0.00013698,2]
[332801102,1721533842885,-500.0,0.00013698,2]
[332801103,1721533842895,-500.0,0.00013698,2]
[332801104,1721533842906,-500.0,0.00013698,2]
[332801105,1721533842915,-1686.5,0.00013698,2]
[332801106,1721533842927,-500.0,0.00013698,2]
[332801107,1721533842937,-500.0,0.00013698,2]
[332801108,1721533842947,-829.59,0.00013698,2]
[332801109,1721533842958,-310.81795827,0.00013698,2]
[332801110,1721533842969,-517.81637955,0.00013698,2]
[332801111,1721533842980,-500.0,0.00013698,2]
[332801112,1721533842989,-511.67133738,0.00013698,2]
[332801113,1721533843000,-500.0,0.00013698,2]
[332801114,1721533843009,-500.0,0.00013698,2]
[332801115,1721533843019,-858.14,0.00013698,2]
[332801116,1721533843030,-500.0,0.00013698,2]
[332801117,1721533843040,-2512.41,0.00013698,2]
[332801118,1721533843051,-500.0,0.00013698,2]
[332801119,1721533843062,-603.44,0.00013698,2]
[332801120,1721533843072,-500.0,0.00013698,2]
[332801121,1721533843081,-500.0,0.00013698,2]
[332801122,1721533843091,-507.09727474,0.00013698,2]
[332801123,1721533843101,-1622.54,0.00013698,2]
[332801124,1721533843110,-500.0,0.00013698,2]
[332801125,1721533843119,-500.0,0.00013698,2]
[332801127,1721533843128,-500.0,0.00013698,2]
[332801128,1721533843138,-500.0,0.00013698,2]
[332801130,1721533843146,-500.0,0.00013698,2]
[332801131,1721533843155,-550.42298283,0.00013698,2]
[332801132,1721533843165,-500.0,0.00013698,2]
[332801133,1721533843173,-500.0,0.00013698,2]
[332801134,1721533843183,-500.0,0.00013698,2]
[332801135,1721533843192,-500.0,0.00013698,2]
[332801136,1721533843201,-1253.88,0.00013698,2]
[332801137,1721533843211,-500.0,0.00013698,2]
[332801138,1721533843223,-500.0,0.00013698,2]
[332801139,1721533843232,-500.0,0.00013698,2]
[332801140,1721533843241,-500.0,0.00013698,2]
[332801141,1721533843251,-500.0,0.00013698,2]
[332801142,1721533843261,-291.18737094,0.00013698,2]
[332801143,1721533843271,-500.0,0.00013698,2]
[332801144,1721533843282,-500.0,0.00013698,2]
[332801145,1721533843293,-500.0,0.00013698,2]
[332801146,1721533843303,-1894.09,0.00013698,2]
[332801148,1721533843312,-500.0,0.00013698,2]
[332801150,1721533843322,-500.0,0.00013698,2]
[332801152,1721533843331,-551.19,0.00013698,2]
[332801154,1721533843343,-502.75342232,0.00013698,2]
[332801156,1721533843353,-500.0,0.00013698,2]
[332801158,1721533843362,-505.38131075,0.00013698,2]
[332801162,1721533843372,-500.0,0.00013698,2]
[332801163,1721533843384,-500.0,0.00013698,2]
[332801164,1721533843394,-500.0,0.00013698,2]
[332801165,1721533843403,-709.42,0.00013698,2]
[332801166,1721533843412,-169.1445557,0.00013698,2]
[332801168,1721533843421,-500.0,0.00013698,2]
[332801169,1721533843431,-515.62998071,0.00013698,2]
[332801170,1721533843440,-500.0,0.00013698,2]
[332801171,1721533843448,-617.37745255,0.00013698,2]
[332801172,1721533843457,-500.0,0.00013698,2]
[332801173,1721533843467,-503.48450541,0.00013698,2]
[332801174,1721533843475,-500.0,0.00013698,2]
[332801175,1721533843484,-548.5574355,0.00013698,2]
[332801176,1721533843494,-640.18,0.00013698,2]
[332801177,1721533843505,-500.0,0.00013698,2]
[332801178,1721533843514,-1247.71,0.00013698,2]
[332801179,1721533843524,-861.29,0.00013698,2]
[332801180,1721533843534,-500.0,0.00013698,2]
[332801181,1721533843545,-549.44249612,0.00013698,2]
[332801182,1721533843556,-907.46,0.00013698,2]
[332801183,1721533843567,-500.0,0.00013698,2]
[332801184,1721533843578,-1646.33,0.00013698,2]
[332801186,1721533843587,-500.0,0.00013698,2]
[332801187,1721533843599,-457.32546745,0.00013698,2]
[332801188,1721533843611,-500.0,0.00013698,2]
[332801189,1721533843623,-1554.0,0.00013698,2]
[332801190,1721533843633,-500.0,0.00013698,2]
[332801192,1721533843642,-573.92873852,0.00013698,2]
[332801193,1721533843654,-846.94,0.00013698,2]
[332801194,1721533843665,-2570.26,0.00013698,2]
[332801195,1721533843676,-500.6716079,0.00013698,2]
[332801196,1721533843688,-500.0,0.00013698,2]
[332801197,1721533843699,-501.2016491,0.00013698,2]
[332801198,1721533843710,-767.19,0.00013698,2]
[332801199,1721533843720,-509.5921109,0.00013698,2]
[332801200,1721533843730,-191.97913078,0.00013698,2]
[332801201,1721533843742,-990.33,0.00013698,2]
[332801202,1721533843757,-525.67,0.00013698,2]
[332801203,1721533843768,-500.0,0.00013698,2]
[332801204,1721533843779,-2282.34,0.00013698,2]
[332801205,1721533843791,-500.0,0.00013698,2]
[332801206,1721533843804,-500.0,0.00013698,2]
[332801207,1721533843815,-500.0,0.00013698,2]
[332801208,1721533843827,-1357.46,0.00013698,2]
[332801209,1721533843838,-500.0,0.00013698,2]
[332801210,1721533843848,-763.95,0.00013698,2]
[332801211,1721533843857,-500.0,0.00013698,2]
[332801213,1721533843867,-500.0,0.00013698,2]
[332801214,1721533843878,-500.0,0.00013698,2]
[332801215,1721533843888,-500.0,0.00013698,2]
[332801216,1721533843899,-500.0,0.00013698,2]
[332801217,1721533843912,-500.0,0.00013698,2]
[332801218,1721533843924,-500.0,0.00013698,2]
[332801219,1721533843937,-500.0,0.00013698,2]
[332801220,1721533843947,-500.0,0.00013698,2]
[332801221,1721533843960,-500.0,0.00013698,2]
[332801222,1721533843971,-500.0,0.00013698,2]
[332801223,1721533843982,-500.0,0.00013698,2]
[332801224,1721533843993,-500.0,0.00013698,2]
[332801225,1721533844004,-500.0,0.00013698,2]
[332801226,1721533844014,-741.1,0.00013698,2]
[332801227,1721533844024,-500.0,0.00013698,2]
[332801228,1721533844035,-624.728192,0.00013698,2]
[332801229,1721533844047,-3609.17,0.00013698,2]
[332801230,1721533844059,-547.13910122,0.00013698,2]
[332801231,1721533844070,-500.0,0.00013698,2]
[332801232,1721533844080,-501.44774616,0.00013698,2]
[332801233,1721533844090,-1097.27,0.00013698,2]
[332801234,1721533844099,-1836.33,0.00013698,2]
[332801235,1721533844108,-500.0,0.00013698,2]
[332801236,1721533844117,-500.0,0.00013698,2]
[332801237,1721533844127,-500.0,0.00013698,2]
[332801238,1721533844138,-500.0,0.00013698,2]
[332801239,1721533844149,-526.16960824,0.00013698,2]
[332801240,1721533844160,-500.0,0.00013698,2]
[332801241,1721533844171,-548.9,0.00013698,2]
[332801242,1721533844180,-500.0,0.00013698,2]
[332801243,1721533844190,-500.0,0.00013698,2]
[332801244,1721533844200,-504.47672826,0.00013698,2]
[332801245,1721533844210,-500.0,0.00013698,2]
[332801246,1721533844219,-650.06,0.00013698,2]
[332801247,1721533844229,-571.4,0.00013698,2]
[332801248,1721533844238,-989.42,0.00013698,2]
[332801249,1721533844248,-1055.7,0.00013698,2]
[332801250,1721533844258,-500.0,0.00013698,2]
[332801251,1721533844267,-500.0,0.00013698,2]
[332801252,1721533844277,-572.28,0.00013698,2]
[332801253,1721533844286,-500.0,0.00013698,2]
[332801254,1721533844295,-500.0,0.00013698,2]
[332801255,1721533844307,-672.79,0.00013698,2]
[332801256,1721533844316,-500.0,0.00013698,2]
[332801257,1721533844326,-646.26,0.00013698,2]
[332801258,1721533844336,-2021.04,0.00013698,2]
[332801259,1721533844345,-500.0,0.00013698,2]
[332801260,1721533844355,-500.0,0.00013698,2]
[332801261,1721533844364,-500.0,0.00013698,2]
[332801262,1721533844373,-500.0,0.00013698,2]
[332801263,1721533844382,-500.0,0.00013698,2]
[332801264,1721533844392,-509.85901008,0.00013698,2]
[332801265,1721533844401,-500.0,0.00013698,2]
[332801266,1721533844410,-518.81684462,0.00013698,2]
[332801267,1721533844419,-500.0,0.00013698,2]
[332801268,1721533844428,-500.0,0.00013698,2]
[332801269,1721533844438,-780.96,0.00013698,2]
[332801270,1721533844447,-500.0,0.00013698,2]
[332801271,1721533844456,-500.0,0.00013698,2]
[332801272,1721533844465,-523.66,0.00013698,2]
[332801273,1721533844474,-500.0,0.00013698,2]
[332801274,1721533844483,-500.0,0.00013698,2]
[332801275,1721533844493,-500.0,0.00013698,2]
[332801276,1721533844504,-500.0,0.00013698,2]
[332801277,1721533844513,-500.0,0.00013698,2]
[332801278,1721533844522,-504.08045759,0.00013698,2]
[332801280,1721533844531,-500.0,0.00013698,2]
[332801282,1721533844541,-500.0,0.00013698,2]
[332801284,1721533844550,-599.7,0.00013698,2]
[332801286,1721533844559,-8031.53,0.00013698,2]
[332801287,1721533844569,-5252.85,0.00013698,2]
[332801288,1721533844578,-500.0,0.00013698,2]
[332801289,1721533844587,-500.0,0.00013698,2]
[332801290,1721533844595,-500.0,0.00013698,2]
[332801291,1721533844604,-764.43,0.00013698,2]
[332801292,1721533844614,-5625.7,0.00013698,2]
[332801293,1721533844623,-1191.93,0.00013698,2]
[332801294,1721533844632,-500.0,0.00013698,2]
[332801295,1721533844641,-503.64244037,0.00013698,2]
[332801296,1721533844650,-2495.28,0.00013698,2]
[332801297,1721533844660,-500.0,0.00013698,2]
[332801298,1721533844669,-7537.32,0.00013698,2]
[332801299,1721533844678,-915.58,0.00013698,2]
[332801300,1721533844688,-500.0,0.00013698,2]
[332801301,1721533844698,-500.0,0.00013698,2]
[332801302,1721533844708,-500.0,0.00013698,2]
[332801303,1721533844718,-500.0,0.00013698,2]
[332801304,1721533844728,-17991.42,0.00013698,2]
[332801305,1721533844737,-501.1334757,0.00013698,2]
[332801306,1721533844747,-500.0,0.00013698,2]
[332801307,1721533844762,-648.19,0.00013698,2]
[332801308,1721533844772,-500.0,0.00013698,2]
[332801309,1721533844781,-910.34,0.00013698,2]
[332801310,1721533844790,-1468.73,0.00013698,2]
[332801311,1721533844801,-2885.31,0.00013698,2]
[332801312,1721533844810,-500.42433486,0.00013698,2]
[332801313,1721533844820,-500.0,0.00013698,2]
[332801314,1721533844830,-500.0,0.00013698,2]
[332801315,1721533844839,-1788.73,0.00013698,2]
[332801316,1721533844849,-500.0,0.00013698,2]
[332801317,1721533844858,-500.0,0.00013698,2]
[332801318,1721533844868,-500.0,0.00013698,2]
[332801319,1721533844877,-500.0,0.00013698,2]
[332801320,1721533844886,-985.85,0.00013698,2]
[332801321,1721533844895,-500.0,0.00013698,2]
[332801322,1721533844904,-503.29603639,0.00013698,2]
[332801323,1721533844914,-2980.45,0.00013698,2]
[332801324,1721533844924,-993.84,0.00013698,2]
[332801325,1721533844933,-500.0,0.00013698,2]
[332801326,1721533844942,-501.5293362,0.00013698,2]
[332801327,1721533844951,-500.0,0.00013698,2]
[332801328,1721533844960,-2258.16,0.00013698,2]
[332801329,1721533844969,-500.0,0.00013698,2]
[332801330,1721533844978,-500.0,0.00013698,2]
[332801331,1721533844988,-641.5,0.00013698,2]
[332801332,1721533844998,-500.0,0.00013698,2]
[332801333,1721533845010,-500.0,0.00013698,2]
[332801334,1721533845019,-500.0,0.00013698,2]
[332801335,1721533845031,-598.68,0.00013698,2]
[332801336,1721533845040,-500.0,0.00013698,2]
[332801337,1721533845049,-500.0,0.00013698,2]
[332801338,1721533845059,-500.0,0.00013698,2]
[332801339,1721533845068,-500.0,0.00013698,2]
[332801340,1721533845078,-3192.94,0.00013698,2]
[332801341,1721533845087,-500.0,0.00013698,2]
[332801342,1721533845096,-500.0,0.00013698,2]
[332801343,1721533845106,-3509.05,0.00013698,2]
[332801344,1721533845116,-501.43167891,0.00013698,2]
[332801345,1721533845126,-500.0,0.00013698,2]
[332801346,1721533845136,-519.48229262,0.00013698,2]
[332801347,1721533845145,-1830.32,0.00013698,2]
[332801348,1721533845156,-10757.27,0.00013698,2]
[332801349,1721533845166,-500.0,0.00013698,2]
[332801350,1721533845175,-500.0,0.00013698,2]
[332801351,1721533845185,-500.0,0.00013698,2]
[332801352,1721533845194,-500.0,0.00013698,2]
[332801353,1721533845203,-502.58812727,0.00013698,2]
[332801354,1721533845213,-1566.52,0.00013698,2]
[332801355,1721533845223,-500.0,0.00013698,2]
[332801356,1721533845233,-646.41911865,0.00013698,2]
[332801357,1721533845242,-500.0,0.00013698,2]
[332801358,1721533845252,-505.15585525,0.00013698,2]
[332801359,1721533845261,-500.0,0.00013698,2]
[332801360,1721533845271,-2375.84,0.00013698,2]
[332801361,1721533845434,-504.82506107,0.00013698,2]
[332801362,1721533845468,-500.0,0.00013698,2]
[332801363,1721533845480,-546.61,0.00013698,2]
[332801364,1721533845491,-508.05205072,0.00013698,2]
[332801365,1721533845503,-500.0,0.00013698,2]
[332801366,1721533845516,-1969.99,0.00013698,2]
[332801367,1721533845527,-501.34951286,0.00013698,2]
[332801368,1721533845536,-500.0,0.00013698,2]
[332801369,1721533845545,-244.6032526,0.00013698,2]
[332801370,1721533845554,-500.0,0.00013698,2]
[332801371,1721533845563,-603.13559602,0.00013698,2]
[332801372,1721533845572,-500.0,0.00013698,2]
[332801373,1721533845581,-500.0,0.00013698,2]
[332801374,1721533845590,-506.1306222,0.00013698,2]
[332801375,1721533845600,-4564.62,0.00013698,2]
[332801376,1721533845611,-553.50097455,0.00013698,2]
[332801377,1721533845624,-500.0,0.00013698,2]
[332801378,1721533845633,-500.0,0.00013698,2]
[332801379,1721533845642,-506.8348777,0.00013698,2]
[332801380,1721533845651,-1014.75,0.00013698,2]
[332801381,1721533845662,-500.0,0.00013698,2]
[332801382,1721533845672,-500.0,0.00013698,2]
[332801383,1721533845682,-500.0,0.00013698,2]
[332801384,1721533845693,-577.43,0.00013698,2]
[332801385,1721533845704,-506.40127866,0.00013698,2]
[332801386,1721533845715,-500.0,0.00013698,2]
[332801387,1721533845727,-500.0,0.00013698,2]
[332801388,1721533845736,-1257.69,0.00013698,2]
[332801389,1721533845746,-500.0,0.00013698,2]
[332801390,1721533845760,-480.92618224,0.00013698,2]
[332801391,1721533845770,-500.0,0.00013698,2]
[332801392,1721533845781,-500.0,0.00013698,2]
[332801393,1721533845791,-500.0,0.00013698,2]
[332801394,1721533845803,-500.0,0.00013698,2]
[332801395,1721533845813,-500.0,0.00013698,2]
[332801396,1721533845823,-4683.45,0.00013698,2]
[332801397,1721533845833,-1048.19,0.00013698,2]
[332801398,1721533845842,-897.72,0.00013698,2]
[332801399,1721533845852,-501.05158394,0.00013698,2]
[332801400,1721533845861,-150.0,0.00013698,2]
[332801401,1721533845870,-500.0,0.00013698,2]
[332801402,1721533845880,-500.0,0.00013698,2]
[332801403,1721533845889,-500.0,0.00013698,2]
[332801404,1721533845899,-1229.65,0.00013698,2]
[332801405,1721533845910,-500.0,0.00013698,2]
[332801406,1721533845922,-500.0,0.00013698,2]
[332801407,1721533845931,-586.78,0.00013698,2]
[332801408,1721533845941,-503.40087268,0.00013698,2]
[332801409,1721533845951,-5199.31754905,0.00013698,2]
[332801420,1721533849904,-154.77557542,9.801e-05,2]
[332801421,1721533849916,-894.21386789,0.000129,2]
[332801422,1721533849926,-3081.56245095,0.00013698,2]
[332801423,1721533849936,-500.0,0.00013698,2]
[332801424,1721533849947,-500.0,0.00013698,2]
[332801425,1721533849957,-649.58,0.00013698,2]
[332801426,1721533849966,-500.0,0.00013698,2]
[332801427,1721533849976,-500.0,0.00013698,2]
[332801428,1721533849985,-500.0,0.00013698,2]
[332801429,1721533849995,-928.11,0.00013698,2]
[332801430,1721533850005,-502.24,0.00013698,2]
[332801431,1721533850015,-500.0,0.00013698,2]
[332801432,1721533850025,-518.51648831,0.00013698,2]
[332801433,1721533850034,-1246.68,0.00013698,2]
[332801434,1721533850043,-500.0,0.00013698,2]
[332801435,1721533850054,-655.76,0.00013698,2]
[332801436,1721533850064,-500.0,0.00013698,2]
[332801437,1721533850074,-820.98,0.00013698,2]
[332801438,1721533850084,-501.33225345,0.00013698,2]
[332801439,1721533850094,-500.0,0.00013698,2]
[332801440,1721533850104,-500.0,0.00013698,2]
[332801441,1721533850114,-746.29,0.00013698,2]
[332801442,1721533850124,-500.0,0.00013698,2]
[332801443,1721533850134,-500.0,0.00013698,2]
[332801444,1721533850144,-1308.4,0.00013698,2]
[332801445,1721533850154,-500.0,0.00013698,2]
[332801446,1721533850164,-500.0,0.00013698,2]
[332801447,1721533850174,-500.0,0.00013698,2]
[332801448,1721533850184,-2899.31,0.00013698,2]
[332801449,1721533850194,-990.29,0.00013698,2]
[332801450,1721533850204,-500.0,0.00013698,2]
[332801451,1721533850214,-915.6,0.00013698,2]
[332801452,1721533850223,-500.0,0.00013698,2]
[332801453,1721533850233,-500.0,0.00013698,2]
[332801454,1721533850243,-500.0,0.00013698,2]
[332801455,1721533850253,-500.0,0.00013698,2]
[332801456,1721533850263,-500.0,0.00013698,2]
[332801457,1721533850273,-485.26211001,0.00013698,2]
[332801458,1721533850284,-1125.95,0.00013698,2]
[332801459,1721533850294,-1731.94,0.00013698,2]
[332801460,1721533850305,-1189.51,0.00013698,2]
[332801461,1721533850318,-1087.81,0.00013698,2]
[332801462,1721533850328,-502.72088124,0.00013698,2]
[332801463,1721533850338,-500.0,0.00013698,2]
[332801464,1721533850348,-500.0,0.00013698,2]
[332801465,1721533850357,-500.0,0.00013698,2]
[332801466,1721533850367,-2774.36,0.00013698,2]
[332801467,1721533850377,-500.0,0.00013698,2]
[332801468,1721533850386,-537.2978861,0.00013698,2]
[332801469,1721533850396,-543.78739897,0.00013698,2]
[332801470,1721533850407,-26217.39,0.00013698,2]
[332801471,1721533850419,-501.12268419,0.00013698,2]
[332801472,1721533850430,-1042.52,0.00013698,2]
[332801473,1721533850440,-4802.15,0.00013698,2]
[332801474,1721533850449,-500.0,0.00013698,2]
[332801475,1721533850459,-502.2429734,0.00013698,2]
[332801476,1721533850469,-2076.85,0.00013698,2]
[332801477,1721533850479,-500.0,0.00013698,2]
[332801478,1721533850490,-606.58,0.00013698,2]
[332801479,1721533850507,-500.0,0.00013698,2]
[332801480,1721533850518,-500.0,0.00013698,2]
[332801481,1721533850529,-500.0,0.00013698,2]
[332801482,1721533850540,-1619.46,0.00013698,2]
[332801483,1721533850551,-1619.46,0.00013698,2]
[332801484,1721533850561,-698.08,0.00013698,2]
[332801485,1721533850572,-1619.46,0.00013698,2]
[332801486,1721533850582,-1619.46,0.00013698,2]
[332801487,1721533850592,-1619.46,0.00013698,2]
[332801488,1721533850602,-1619.46,0.00013698,2]
[332801489,1721533850613,-1619.46,0.00013698,2]
[332801490,1721533850624,-506.67046312,0.00013698,2]
[332801491,1721533850635,-1511.37,0.00013698,2]
[332801492,1721533850646,-277.30974389,0.00013698,2]
[332801493,1721533850656,-1619.46,0.00013698,2]
[332801494,1721533850666,-893.44,0.00013698,2]
[332801495,1721533850675,-1619.46,0.00013698,2]
[332801496,1721533850684,-500.0,0.00013698,2]
[332801497,1721533850694,-1619.46,0.00013698,2]
[332801498,1721533850703,-1619.46,0.00013698,2]
[332801499,1721533850713,-500.0,0.00013698,2]
[332801500,1721533850723,-1619.46,0.00013698,2]
[332801501,1721533850733,-1619.46,0.00013698,2]
[332801502,1721533850743,-1619.46,0.00013698,2]
[332801503,1721533850753,-500.0,0.00013698,2]
[332801504,1721533850767,-503.5797547,0.00013698,2]
[332801505,1721533850777,-1405.72,0.00013698,2]
[332801506,1721533850786,-502.00450992,0.00013698,2]
[332801507,1721533850795,-11744.73,0.00013698,2]
[332801508,1721533850807,-506.405325,0.00013698,2]
[332801509,1721533850818,-500.0,0.00013698,2]
[332801510,1721533850828,-500.0,0.00013698,2]
[332801511,1721533850839,-195.08991549,0.00013698,2]
[332801512,1721533850848,-500.0,0.00013698,2]
[332801513,1721533850859,-500.0,0.00013698,2]
[332801514,1721533850868,-1012.95674876,0.00013698,2]
[332801515,1721533850879,-505.04722869,0.00013698,2]
[332801516,1721533850889,-4153.2,0.00013698,2]
[332801517,1721533850898,-488.60007628,0.00013698,2]
[332801518,1721533850910,-500.0,0.00013698,2]
[332801519,1721533850920,-500.0,0.00013698,2]
[332801520,1721533850931,-500.0,0.00013698,2]
[332801521,1721533850943,-2216.47,0.00013698,2]
[332801522,1721533850953,-2022.82,0.00013698,2]
[332801523,1721533850963,-500.0,0.00013698,2]
[332801524,1721533850973,-500.0,0.00013698,2]
[332801525,1721533850982,-500.0,0.00013698,2]
[332801526,1721533850994,-500.0,0.00013698,2]
[332801527,1721533851004,-273.53253815,0.00013698,2]
[332801528,1721533851015,-657.63,0.00013698,2]
[332801529,1721533851027,-500.0,0.00013698,2]
[332801530,1721533851038,-500.0,0.00013698,2]
[332801531,1721533851049,-500.0,0.00013698,2]
[332801532,1721533851059,-500.0,0.00013698,2]
[332801533,1721533851071,-1073.94,0.00013698,2]
[332801534,1721533851081,-502.47574919,0.00013698,2]
[332801535,1721533851090,-500.97080716,0.00013698,2]
[332801536,1721533851102,-1219.61,0.00013698,2]
[332801537,1721533851113,-500.0,0.00013698,2]
[332801538,1721533851124,-3923.85,0.00013698,2]
[332801539,1721533851135,-500.0,0.00013698,2]
[332801540,1721533851145,-500.0,0.00013698,2]
[332801541,1721533851154,-654.93,0.00013698,2]
[332801542,1721533851164,-500.0,0.00013698,2]
[332801543,1721533851173,-500.0,0.00013698,2]
[332801544,1721533851183,-980.81,0.00013698,2]
[332801545,1721533851192,-3122.49,0.00013698,2]
[332801546,1721533851202,-500.0,0.00013698,2]
[332801547,1721533851212,-2349.57,0.00013698,2]
[332801548,1721533851221,-483.36756744,0.00013698,2]
[332801549,1721533851231,-500.0,0.00013698,2]
[332801550,1721533851240,-500.0,0.00013698,2]
[332801551,1721533851249,-500.0,0.00013698,2]
[332801552,1721533851260,-293.625929,0.00013699,2]
[332801553,1721533851270,-3000.0,0.00013699,2]
[332801554,1721533851279,-1619.46,0.00013718,2]
[332801555,1721533851289,-155.0,0.0001377,2]
[332801556,1721533851299,-156.8994023,0.000138,2]
[332801557,1721533851309,-5304.19710114,0.00013813,2]
[332801558,1721533851319,-367.35615468,0.00013823,2]
[332801559,1721533851329,-464.066054,0.00013962,2]
[332801560,1721533851339,-464.066054,0.00013962,2]
[332801561,1721533851349,-151.0,0.00013962,2]
[332801562,1721533851361,-103938.75129399,0.00013965,2]
[332801563,1721533851371,-500.0,0.0001397,2]
[332801564,1721533851383,-500.0,0.00013971,2]
[332801565,1721533851597,-500.0,0.00013971,2]
[332801566,1721533851607,-500.0,0.00013971,2]
[332801567,1721533851617,-500.0,0.00013971,2]
[332801568,1721533851627,-473.39537571,0.00013971,2]
[332801569,1721533851636,-500.0,0.00013971,2]
[332801570,1721533851646,-500.0,0.00013971,2]
[332801571,1721533851655,-500.0,0.00013971,2]
[332801572,1721533851665,-500.0,0.00013971,2]
[332801573,1721533851674,-500.0,0.00013971,2]
[332801574,1721533851684,-500.0,0.00013971,2]
[332801575,1721533851694,-500.0,0.00013971,2]
[332801576,1721533851704,-549.25474034,0.00013971,2]
[332801577,1721533851714,-1619.46,0.00013971,2]